Cogmind - Beta 9.6 @@@ ROGUE MODE // 2020.07.31 @ 22:03:20 Player: Alexbot Result: Destroyed by H-55 Commando with Gauss Rifle Performance ------------- Evolutions (3) 1500 Regions Visited (5) 1000 Robots Destroyed (2) 10 Value Destroyed (20) 20 Prototype IDs (0) 0 Alien Tech Used (0) 0 Bonus (200) 200 TOTAL SCORE: 2730 Bonus ------- Entered Garrisons 200 Cogmind --------- Core Integrity 0/700 Matter 265/300 Energy 90/100 System Corruption 0% Temperature Cool (1) Movement Flying (40) Location -7/Garrison Parts ------- > --- POWER (2) -------- (None) > --- PROPULSION (6) --- Flight Unit > --- UTILITY (3) ------ Advanced Signal Interpreter > --- WEAPON (2) ------- (None) > --- INVENTORY (4) ---- Ion Engine Medium Laser Peak State ------------ > --- POWER ------------ Ion Engine > --- PROPULSION ------- Flight Unit Flight Unit > --- UTILITY ---------- Advanced Signal Interpreter > --- WEAPON ----------- (None) > --- INVENTORY -------- Medium Laser [Rating: 6] Favorites ----------- Power Ion Engine Engine Ion Engine Propulsion Flight Unit Leg Aluminum Leg Flight Unit Flight Unit Utility Advanced Signal Interpreter Processor Advanced Signal Interpreter Weapon Assault Rifle Energy Gun Small Laser Ballistic Gun Assault Rifle Build | -11 -10 -9 -8 -7 -7 ------- Run | Scr Mat Mat Mat Fac Gar Slots Evolved 6 | . . 2 2 2 . Power 1 | . . 1 . . . Propulsion 4 | . . 1 1 2 . Utility 1 | . . . 1 . . Weapon . | . . . . . . Parts Attached 4 | . . . 1 . 3 Power 1 | . . . . . 1 Engine 1 | . . . . . 1 Core . | . . . . . . Reactor . | . . . . . . Propulsion 2 | . . . . . 2 Treads . | . . . . . . Leg . | . . . . . . Wheel . | . . . . . . Hover . | . . . . . . Flight 2 | . . . . . 2 Utility 1 | . . . 1 . . Device . | . . . . . . Storage . | . . . . . . Processor 1 | . . . 1 . . Hackware . | . . . . . . Protection . | . . . . . . Artifact . | . . . . . . Weapon . | . . . . . . Energy Gun . | . . . . . . Energy Cannon . | . . . . . . Ballistic Gun . | . . . . . . Ballistic Cannon . | . . . . . . Launcher . | . . . . . . Special Weapon . | . . . . . . Impact Weapon . | . . . . . . Slashing Weapon . | . . . . . . Piercing Weapon . | . . . . . . Special Melee Weapon . | . . . . . . Unidentified Prototypes . | . . . . . . Parts Lost 3 | . 1 1 . . 1 Power . | . . . . . . Propulsion 1 | . . . . . 1 Utility . | . . . . . . Weapon 2 | . 1 1 . . . Highest Loss Streak 1 | . 1 1 . . 1 Average Slot Usage (%) 11 | . 24 8 1 7 10 Processor 2 | . . . 1 7 7 Energy Gun 2 | . 10 . . . . Ballistic Gun 4 | . 14 8 . . . Naked Turns 69 | . . 9 60 . . Heaviest Build 12 | 12 3 2 . . 5 Greatest Support 20 | 20 3 3 3 3 8 Greatest Overweight (x) . | . . . . . . Average Overweight (x) . | . . . . . . Largest Inventory Capacity 4 | . 4 4 4 4 4 Average Capacity 4 | . 4 4 4 4 4 Most Carried 4 | . 4 4 4 4 4 Average Carried 3 | . 2 4 4 4 3 Final Capacity 6 | 6 4 4 4 4 4 Final Carried 6 | 6 4 4 4 4 2 Class Distribution -------------------- 100% | Mutant Dominant Class ---------------- Mutant | -10/Materials Mutant | -9/Materials Mutant | -8/Materials Mutant | -7/Factory Mutant | -7/Garrison Resources | -11 -10 -9 -8 -7 -7 ----------- Run | Scr Mat Mat Mat Fac Gar Matter Collected 206 | 200 6 . . . . Remotely . | . . . . . . Salvage Created 36 | . 36 . . . . Parts 4 | . 4 . . . . Haulers Intercepted . | . . . . . . Recyclers Shooed . | . . . . . . Parts Field Recycled . | . . . . . . Retrieved Matter . | . . . . . . Parts Self-Destructed . | . . . . . . Prevented . | . . . . . . Kills | -11 -10 -9 -8 -7 -7 ------- Run | Scr Mat Mat Mat Fac Gar Combat Hostiles Destroyed 2 | . 2 . . . . Guns 2 | . 2 . . . . Classes Destroyed 1 | . 1 . . . . Swarmer 2 | . 2 . . . . Best Kill Streak 2 | . 2 . . . . Combat Bots Only 2 | . 2 . . . . Max Kills in Single Turn 1 | . 1 . . . . Gunslinging . | . . . . . . Exploded . | . . . . . . Melee . | . . . . . . Uniques/NPCs Destroyed . | . . . . . . Combat | -11 -10 -9 -8 -7 -7 -------- Run | Scr Mat Mat Mat Fac Gar Damage Taken 1102 | . 133 78 102 . 789 Core 878 | . 32 33 102 . 711 Absorbed by Shields 16 | . . . . . 16 Core Remaining (%) 89 | 100 87 91 81 . . Volleys Fired 5 | . 5 . . . . Largest 2 | . 2 . . . . Hottest 60 | . 60 . . . . Shots Fired 10 | . 10 . . . . Gun 10 | . 10 . . . . Cannon . | . . . . . . Launcher . | . . . . . . Special . | . . . . . . Kinetic 5 | . 5 . . . . Thermal 5 | . 5 . . . . Explosive . | . . . . . . Electromagnetic . | . . . . . . Robot Hit Streak 2 | . 2 . . . . Robot Miss Streak 3 | . 3 . . . . Penetration Max . | . . . . . . Secondary Targets . | . . . . . . Shots Hit Robots 4 | . 4 . . . . Core Hits 3 | . 3 . . . . Critical Hits . | . . . . . . Critical Kills . | . . . . . . Critical Parts Destroyed . | . . . . . . Melee Attacks . | . . . . . . Impact . | . . . . . . Slashing . | . . . . . . Piercing . | . . . . . . Sneak Attacks . | . . . . . . Combat Hostiles . | . . . . . . Follow-up Attacks . | . . . . . . Damage Inflicted 42 | . 42 . . . . Guns 37 | . 37 . . . . Cannons . | . . . . . . Explosions . | . . . . . . Melee . | . . . . . . Ramming 5 | . 5 . . . . Kinetic 26 | . 26 . . . . Thermal 11 | . 11 . . . . Explosive . | . . . . . . Electromagnetic . | . . . . . . Impact . | . . . . . . Slashing . | . . . . . . Piercing . | . . . . . . Highest Corruption . | . . . . . . Average Corruption . | . . . . . . Corruption Purged . | . . . . . . Overload Shots . | . . . . . . Overflow Damage . | . . . . . . Projectiles . | . . . . . . Explosions . | . . . . . . Melee . | . . . . . . Knockbacks . | . . . . . . Impact . | . . . . . . Kinetic . | . . . . . . Secondary . | . . . . . . Self-Inflicted Damage 2 | . 2 . . . . Shots . | . . . . . . Rammed 1 | . 1 . . . . Targets Rammed 1 | . 1 . . . . Kicked . | . . . . . . Crushed . | . . . . . . Highest Temperature 15 | . 15 . . . . Average Temperature 10 | . 10 . . . . Received Heat Transfer 222 | . 63 42 63 . 54 Siege Activations . | . . . . . . Robots Corrupted . | . . . . . . Combat Hostiles . | . . . . . . Parts Fried . | . . . . . . Impact Corruptions . | . . . . . . Robots Melted . | . . . . . . Combat Hostiles . | . . . . . . Parts Melted . | . . . . . . Heat Transferred 25 | . 25 . . . . Parts Sabotaged . | . . . . . . Parts Stolen . | . . . . . . Parts Stripped . | . . . . . . Power Chain Reactions . | . . . . . . Missiles Intercepted . | . . . . . . Alert | -11 -10 -9 -8 -7 -7 ------- Run | Scr Mat Mat Mat Fac Gar Peak Influence 65 | . 65 42 43 18 32 Average Influence 24 | . 27 27 18 18 25 Maximum Alert Level . | . . . . . . Low Security (%) 100 | . 100 100 100 100 100 Level 1 . | . . . . . . Level 2 . | . . . . . . Level 3 . | . . . . . . Level 4 . | . . . . . . Level 5 . | . . . . . . High Security . | . . . . . . Max Security . | . . . . . . Squads Dispatched 3 | . 1 . 2 . . Investigation 1 | . . . 1 . . Extermination . | . . . . . . Reinforcement 2 | . 1 . 1 . . Assault . | . . . . . . Garrison . | . . . . . . Intercept . | . . . . . . Construction Impeded . | . . . . . . Haulers Reinforced . | . . . . . . Stealth | -11 -10 -9 -8 -7 -7 --------- Run | Scr Mat Mat Mat Fac Gar Distress Signals 2 | . 1 1 . . . Communications Jammed . | . . . . . . Distress Signals . | . . . . . . Times Spotted 34 | . 9 6 5 . 14 Peak Tracking Total 17 | . 6 6 4 . 17 Tactical Retreats 1 | . 1 . . . . Traps | -11 -10 -9 -8 -7 -7 ------- Run | Scr Mat Mat Mat Fac Gar Traps Triggered 2 | . . . . . 2 Indirectly . | . . . . . . Trap Hack Attempts . | . . . . . . Triggered . | . . . . . . Disarmed . | . . . . . . Reprogrammed . | . . . . . . Reused . | . . . . . . Traps Extracted . | . . . . . . Installed . | . . . . . . Triggered . | . . . . . . Machines | -11 -10 -9 -8 -7 -7 ---------- Run | Scr Mat Mat Mat Fac Gar Machines Disabled . | . . . . . . Max in Single Turn . | . . . . . . Machines Sabotaged . | . . . . . . Garrisons Compromised . | . . . . . . Overloaded Fab Kills . | . . . . . . Fab Network Shutdowns . | . . . . . . Hacking | -11 -10 -9 -8 -7 -7 --------- Run | Scr Mat Mat Mat Fac Gar Machines Accessed 4 | . 1 1 1 1 . Terminals 3 | . 1 1 1 . . Fabricators . | . . . . . . Repair Stations . | . . . . . . Recycling Units . | . . . . . . Scanalyzers . | . . . . . . Garrison Access 1 | . . . . 1 . Total Hacks 11 | . 4 3 3 1 . Successful 4 | . 1 1 1 1 . Failed 7 | . 3 2 2 . . Catastrophic 2 | . 1 1 . . . Database Lockouts . | . . . . . . Manual 10 | . 4 3 3 . . Terminals 10 | . 4 3 3 . . Fabricators . | . . . . . . Repair Stations . | . . . . . . Recycling Units . | . . . . . . Scanalyzers . | . . . . . . Garrison Access 1 | . . . . 1 . Terminal Hacks . | . . . . . . Fabricator Hacks . | . . . . . . Repair Station Hacks . | . . . . . . Recycling Unit Hacks . | . . . . . . Scanalyzer . | . . . . . . Garrison Access Hacks 1 | . . . . 1 . Unlock Access 1 | . . . . 1 . Unauthorized Hacks 3 | . 1 1 1 . . Terminals 3 | . 1 1 1 . . Botnet 3 | . 1 1 1 . . Fabricators . | . . . . . . Repair Stations . | . . . . . . Recycling Units . | . . . . . . Scanalyzers . | . . . . . . Garrison Access . | . . . . . . Data Cores Recovered . | . . . . . . Used . | . . . . . . Hacking Detections 3 | . 1 1 1 . . Full Trace Events 2 | . . 1 1 . . Feedback Events . | . . . . . . Feedback Blocked . | . . . . . . Robot Schematics Acquired . | . . . . . . Robots Built . | . . . . . . Matter . | . . . . . . Time . | . . . . . . Total Robot Build Rating . | . . . . . . Part Schematics Acquired . | . . . . . . Parts Built . | . . . . . . Matter . | . . . . . . Time . | . . . . . . Total Part Build Rating . | . . . . . . Parts Repaired . | . . . . . . Time . | . . . . . . Parts Recycled . | . . . . . . Recycled Matter . | . . . . . . Retrieved Matter . | . . . . . . Retrieved Components . | . . . . . . Parts Scanalyzed . | . . . . . . Part Schematics Acquired . | . . . . . . Parts Damaged . | . . . . . . Bothacking | -11 -10 -9 -8 -7 -7 ------------ Run | Scr Mat Mat Mat Fac Gar Used RIF Installer . | . . . . . . Robots Hacked . | . . . . . . Non-combat . | . . . . . . Combat . | . . . . . . Robot Hacks Applied . | . . . . . . Relay Couplers Released . | . . . . . . Robots Rewired . | . . . . . . Allies Hacked . | . . . . . . Hacks Repelled . | . . . . . . Allies | -11 -10 -9 -8 -7 -7 -------- Run | Scr Mat Mat Mat Fac Gar Total Allies . | . . . . . . Largest Group . | . . . . . . Highest-Rated Group . | . . . . . . Highest-Rated Ally . | . . . . . . Total Orders . | . . . . . . Ally Attacks . | . . . . . . Total Damage . | . . . . . . Kills . | . . . . . . Allies Corrupted . | . . . . . . Allies Melted . | . . . . . . Intel | -11 -10 -9 -8 -7 -7 ------- Run | Scr Mat Mat Mat Fac Gar Robot Analysis Total . | . . . . . . Derelict Logs Recovered . | . . . . . . Drone Launches . | . . . . . . Drone Recoveries . | . . . . . . Exploration | -11 -10 -9 -8 -7 -7 ------------- Run | Scr Mat Mat Mat Fac Gar Turns Passed 280 | . 73 43 72 13 79 Spaces Moved 481 | 1 96 85 140 24 135 Core 441 | . 96 85 140 24 96 Treads . | . . . . . . Legs 1 | 1 . . . . . Wheels . | . . . . . . Hover . | . . . . . . Flight 39 | . . . . . 39 Fastest Speed 37 | 120 50 50 50 50 37 Average Speed 49 | 120 50 50 50 50 46 Slowest Speed 120 | 120 50 50 50 50 50 Overloaded Moves . | . . . . . . Propulsion Burnouts . | . . . . . . Robots Hopped 1 | . . . . . 1 Cave-ins Triggered . | . . . . . . Exploration Rate (%) 20 | 2 31 19 25 1 42 Regions Visited 5 Branch Regions . Pre-discovered Areas . | . . . . . . Known Exits Taken 2 | . . . 1 1 . Unknown Exits Taken 3 | 1 1 1 . . . Scrap Searched . | . . . . . . Spaces Dug . | . . . . . . Terrain Destroyed . | . . . . . . Melee . | . . . . . . Projectile . | . . . . . . AOE . | . . . . . . Actions | -11 -10 -9 -8 -7 -7 --------- Run | Scr Mat Mat Mat Fac Gar Total 511 | . 113 84 140 24 150 Wait 4 | . 4 . . . . Move 474 | . 95 84 139 24 132 Hop 1 | . . . . . 1 Pick Up 2 | . 2 . . . . Fast Attach 1 | . . . 1 . . Attach 3 | . . . . . 3 Detach 1 | . . . . . 1 Swap . | . . . . . . Drop 6 | . 6 . . . . Fire 5 | . 5 . . . . Melee . | . . . . . . Ram 1 | . 1 . . . . Kick . | . . . . . . Crush . | . . . . . . Escape Stasis 13 | . . . . . 13 Rewire . | . . . . . . Trap . | . . . . . . Miscellaneous . | . . . . . . Route ------- -11/Scrapyard -10/Materials -9/Materials -8/Materials -7/Factory -7/Garrison (discovered 1 exit: *Fac) History --------- Turn | Location | Event 1 | -11/Scrapyard | Discovered new exit (range 0) 1 | -11/Scrapyard | Entered Materials 67 | -10/Materials | Discovered new exit (range 15) 74 | -10/Materials | Entered another Materials area 74 | -9/Materials | Evolved 2 slots: Power x1, Propulsion x1 109 | -9/Materials | Discovered new exit (range 16) 117 | -9/Materials | Entered another Materials area 117 | -8/Materials | Evolved 2 slots: Propulsion x1, Utility x1 185 | -8/Materials | Discovered new exit (range 8) 188 | -8/Materials | Identified exit to Factory 189 | -8/Materials | Entered Factory 189 | -7/Factory | Evolved 2 slots: Propulsion x2 202 | -7/Factory | Identified exit to Garrison 202 | -7/Factory | Entered Garrison 247 | -7/Garrison | Discovered new exit (range 11) 252 | -7/Garrison | Identified exit to Factory 252 | -7/Garrison | Attempted to access garrison exit controls, blocked by remote lockdown 256 | -7/Garrison | Core integrity fell below 50% 259 | -7/Garrison | Spotted B-75 Beast 270 | -7/Garrison | Triggered checkpoint 270 | -7/Garrison | Core integrity fell below 20% 272 | -7/Garrison | Triggered checkpoint 272 | -7/Garrison | Triggered checkpoint 281 | -7/Garrison | Destroyed by H-55 Commando with Gauss Rifle Last Messages --------------- 00222_ Field strength at 48. 00223_ Field strength at 42. 00223_ Penetrated by Slug. 00224_ Field strength at 30. 00225_ Field strength at 24. 00226_ Field strength at 18. 00227_ Field strength at 12. 00228_ Field strength at 6. 00228_ Penetrated by Slug. 00228_ Stasis field depleted. 00247_ EXIT=FOUND 00252_ EXIT=IDENTIFIED: FACTORY 00252_ Attempting to access garrison exit controls... 00252_ Remote lockdown engaged. 00259_ Triggered Alarm Trap. 00259_ An alarm sounds. 00263_ Penetrated by Slug. 00270_ Beams of light sweep through the air. An alarm sounds. 00276_ Flight Unit destroyed. 00278_ Penetrated by Slug. Map ----- +----------------------------------------------------+ | ???# #####??# #????????????????????????????????? | | ???# ## ?# #????????????????????????????????? | | ??## ## ## ##???????????????????????????????? | | ??# #???????????????????????????????? | | #???????????????????????????????? | | #???????????????????????????????? | | ### ## ## #???????????????????????????????? | | ?## ## ## ###?????????????????????????????? | | ? #?????????????????????????????? | | # #?????????????????????????????? | | # #?????????????????????????????? | | # #?????????????????????????????? | | ??# ## ## ###?????????????????????????????? | | ??# ## ## #???????????????????????????????? | | ??# #???????????????????????????????? | | ??# #???????????????????????????????? | | ??# #???????????????????????????????? | | ??## ##""""## #???????????????????????????????? | | ???# ????????# #???????????????????????????????? | | ?????????????# #???????????????????????????????? | | ?????????????# #???????????????????????????????? | | ?????????????# #???????????????????????????????? | | ?????????????# #???????????????????????????????? | | ?????????????# #####################???????????? | | ?????????????# s h ????????? | | ?????????????# @ ????????? | | ?????????????# ????????? | | ?????????????##################### ##???????????? | | ?????????????????????????????????????????????????? | | ?????????????????????????????????????????????????? | | ?????????????????????????????????????????????????? | | ?????????????????????????????????????????????????? | | ?????????????????????????????????????????????????? | | ?????????????????????????????????????????????????? | | ?????????????????????????????????????????????????? | | ?????????????????????????????????????????????????? | | ?????????????????????????????????????????????????? | | ?????????????????????????????????????????????????? | | ?????????????????????????????????????????????????? | | ?????????????????????????????????????????????????? | | ?????????????????????????????????????????????????? | | ?????????????????????????????????????????????????? | | ?????????????????????????????????????????????????? | | ?????????????????????????????????????????????????? | | ?????????????????????????????????????????????????? | | ?????????????????????????????????????????????????? | | ?????????????????????????????????????????????????? | | ?????????????????????????????????????????????????? | | ?????????????????????????????????????????????????? | | ?????????????????????????????????????????????????? | +----------------------------------------------------+ Best States ------------- Heat Dissipation 34 Energy Generation 10 Energy Capacity 250 Matter Stores 300 Matter Capacity 300 Sight Range 16 Terrain Scan Density 10 Evasion (%) 62 Item Schematics ----------------- None Robot Schematics ------------------ None Fabricated ------------ Nothing Alien Tech Used ----------------- None Achievements -------------- None Challenges ------------ None Game ------ Seed LightGatlingWings Manual? 0 Play Time 00:05:51 Cumulative 830.3 hours Start 2020.07.31 @ 21:58:46 End 2020.07.31 @ 22:03:20 Sessions 1 Manual Loads 0 Difficulty Rogue Special Mode None Game No. 250 Rogue 250 Adventurer 0 Explorer 0 Win Type - Total 45 Types 33/1/3/3/3/1/1 Lore% 97 Gallery% 99 Achievement% 95 Wizard Run 0 Options --------- ASCII 0 Keyboard 1 Movement Numpad Keybinds 0 Fullscreen 1 Font 18/SmallcapsGlow Map View 76x50 Tactical HUD 1 Map Filters NONE Filters NONE Steam 1 RUN: 84e439db-3896-44c6-92aa-3e6c29777885